bitfinex/quotes_SOLUSD_20240702
["timestamp","ask_amount","ask_price","bid_price","bid_amount"]
[1719905784541,0.7416782,147.27,147.23,0.8263985]
[1719905784742,7.5319782,147.27,147.23,0.8263985]
[1719905785159,6.7907,147.26,147.23,0.8263985]
[1719905785357,21.2402,147.26,147.23,0.8263985]
[1719905785562,28.7728782,147.26,147.23,0.8263985]
[1719905785950,21.9818782,147.26,147.23,0.8263985]
[1719905787071,19.2112,147.25,147.23,0.8263985]
[1719905787361,34.4018782,147.26,147.23,0.8263985]
[1719905787566,0.7416782,147.25,147.23,0.8263985]
[1719905789182,19.9528782,147.25,147.23,0.8263985]
[1719905789469,19.9529782,147.25,147.23,0.8263985]
[1719905789643,0.7416782,147.25,147.23,0.8263985]
[1719905789848,13.1616782,147.25,147.23,0.8263985]
[1719905790962,19.9529782,147.25,147.23,0.8263985]
[1719905791345,13.1616782,147.25,147.23,0.8263985]
[1719905791647,19.9528782,147.25,147.23,0.8263985]
[1719905792043,13.1616782,147.25,147.23,0.8263985]
[1719905793956,21.9818782,147.26,147.23,0.8263985]
[1719905794760,28.7725782,147.26,147.23,0.8263985]
[1719905795167,34.4018782,147.26,147.23,0.8263985]
[1719905797375,21.9818782,147.26,147.23,0.8263985]
[1719905798874,0.7416782,147.26,147.23,13.2463985]
[1719905799178,20.7416782,147.26,147.23,0.8263985]
[1719905799876,27.5323782,147.26,147.23,0.8263985]
[1719905800058,39.9523782,147.26,147.23,0.8263985]
[1719905800780,33.1616782,147.26,147.23,0.8263985]
[1719905802380,20.7416782,147.26,147.23,0.8263985]
[1719905803280,7.5313782,147.29,147.23,13.2463985]
[1719905803462,7.5313782,147.29,147.24,12.42]
[1719905803774,0.7416782,147.29,147.24,12.42]
[1719905804355,13.1616782,147.29,147.24,12.42]
[1719905804977,13.1616782,147.29,147.23,0.8263985]
[1719905805152,13.1616782,147.29,147.24,12.42]
[1719905807493,19.9509782,147.29,147.24,12.42]
[1719905809053,13.1616782,147.29,147.24,12.42]
[1719905809696,0.7416782,147.29,147.24,12.42]
[1719905809976,20.7416782,147.29,147.24,12.42]
[1719905810158,20.7416782,147.29,147.23,0.8263985]
[1719905810559,39.9509782,147.29,147.24,12.42]
[1719905811482,6.7898,147.28,147.23,0.8263985]
[1719905811676,13.1616782,147.27,147.23,0.8263985]
[1719905813980,0.7416782,147.26,147.23,0.8263985]
[1719905815364,13.1616782,147.26,147.23,0.8263985]
[1719905817178,12.42,147.26,147.23,0.8263985]
[1719905817572,13.1616782,147.27,147.23,0.8263985]
[1719905818164,20.7416782,147.29,147.24,12.42]
[1719905818484,33.1616782,147.29,147.24,12.42]
[1719905818785,33.1616782,147.29,147.23,13.2463985]
[1719905818987,20.7416782,147.29,147.23,13.2463985]
[1719905819167,12.42,147.28,147.23,13.2463985]
[1719905819968,20.7416782,147.29,147.24,12.42]
[1719905820174,0.7416782,147.32,147.26,12.42]
[1719905820371,13.1616782,147.32,147.26,12.42]
[1719905820698,12.42,147.31,147.26,12.42]
[1719905821771,7.5295782,147.32,147.23,100.8263985]
[1719905821772,0.7416782,147.32,147.27,12.42]
[1719905821988,9.46348582,147.33,147.28,12.42]
[1719905822176,16.68309539,147.35,147.3,12.42]
[1719905822493,24.38244805,147.36,147.3,12.42]
[1719905822689,24.38244805,147.36,147.31,12.42]
[1719905823065,24.38244805,147.36,147.3,12.42]
[1719905823266,11.96244805,147.36,147.3,12.42]
[1719905823480,20.0,147.35,147.31,12.42]
[1719905824485,32.42,147.35,147.3,12.42]
[1719905824679,39.2066,147.35,147.3,12.42]
[1719905824871,13.1616782,147.34,147.29,12.42]
[1719905825070,19.9486782,147.34,147.29,12.42]
[1719905825378,19.2075,147.33,147.25,100.0]
[1719905825584,19.2075,147.33,147.28,12.42]
[1719905826111,13.1616782,147.32,147.24,57.0856]
[1719905826408,0.7416782,147.34,147.26,200.0]
[1719905826586,0.7416782,147.34,147.3,12.42]
[1719905826774,33.1616782,147.35,147.3,12.42]
[1719905828074,20.7416782,147.35,147.31,12.42]
[1719905828575,20.0,147.35,147.31,12.42]
[1719905828807,20.0,147.36,147.32,12.42]
[1719905828993,0.7416782,147.35,147.26,100.0]
[1719905829180,12.42,147.34,147.29,12.42]
[1719905830999,0.7416782,147.35,147.28,100.0]
[1719905831208,13.1616782,147.35,147.3,12.42]
[1719905831505,0.7416782,147.35,147.31,12.42]
[1719905832381,33.1616782,147.36,147.31,12.42]
[1719905833013,20.0,147.36,147.32,12.42]
[1719905834106,20.0,147.36,147.28,112.42]
[1719905834283,20.0,147.36,147.33,12.42]
[1719905834889,13.1725,147.38,147.31,100.0]
[1719905835208,13.1725,147.38,147.34,12.42]
[1719905835594,6.7852,147.38,147.34,12.42]
[1719905836200,6.7852,147.38,147.32,1.35720302]
[1719905836402,6.7852,147.38,147.35,12.42]
[1719905836605,6.7852,147.38,147.34,12.42]
[1719905836778,6.7857,147.37,147.34,12.42]
[1719905836979,6.7857,147.37,147.33,12.42]
[1719905837220,7.5273782,147.37,147.33,12.42]
[1719905838415,7.5273782,147.37,147.32,12.42]
[1719905838584,19.2057,147.37,147.32,12.42]
[1719905839403,0.7416782,147.39,147.32,12.42]
[1719905839709,19.2056,147.37,147.32,12.42]
[1719905839913,0.7416782,147.38,147.33,12.42]
[1719905840102,33.1616782,147.38,147.33,12.42]
[1719905840309,20.7416782,147.38,147.33,12.42]
[1719905841924,33.1616782,147.38,147.33,12.42]
[1719905842122,32.42,147.38,147.33,12.42]
[1719905842421,0.7416782,147.37,147.32,12.42]
[1719905842600,7.5272782,147.37,147.29,56.1275]
[1719905842807,12.42,147.36,147.31,12.42]
[1719905842988,13.1616782,147.35,147.29,15.3775]
[1719905843191,13.1616782,147.35,147.3,12.42]
[1719905843389,12.42,147.34,147.29,12.42]
[1719905844124,13.1616782,147.34,147.26,115.7716]
[1719905844329,13.1616782,147.34,147.29,12.42]
[1719905844535,12.42,147.33,147.28,12.42]
[1719905844901,13.1616782,147.34,147.28,12.42]
[1719905845100,13.1512,147.35,147.23,0.8263985]
[1719905845101,48.6136782,147.33,147.23,0.8263985]
[1719905845305,12.42,147.29,147.24,12.42]
[1719905845940,13.1616782,147.29,147.24,12.42]
[1719905846724,7.5310782,147.29,147.23,0.8263985]
[1719905846933,13.1616782,147.28,147.23,0.8263985]
[1719905847503,12.42,147.27,147.23,0.8263985]
[1719905847705,0.7416782,147.28,147.23,0.8263985]
[1719905849443,6.4769,147.29,147.23,0.8263985]
[1719905850941,13.2662,147.29,147.23,0.8263985]
[1719905851439,0.7416782,147.28,147.23,0.8263985]
[1719905852146,7.5313782,147.28,147.23,0.8263985]
[1719905854349,0.7416782,147.28,147.23,0.8263985]
[1719905854644,20.7416782,147.28,147.23,0.8263985]
[1719905855143,6.7904,147.27,147.23,0.8263985]
[1719905855349,0.7416782,147.26,147.23,0.8263985]
[1719905856971,7.5324782,147.26,147.23,0.8263985]
[1719905857173,0.7416782,147.25,147.23,0.8263985]
[1719905858345,0.7416782,147.26,147.23,0.8263985]
[1719905858569,0.7416782,147.27,147.23,0.8263985]
[1719905861271,27.5315782,147.28,147.23,0.8263985]
[1719905861456,20.0,147.28,147.23,0.8263985]
[1719905862876,26.7898,147.28,147.23,0.8263985]
[1719905865304,6.7895,147.29,147.23,0.8263985]
[1719905865474,6.7895,147.29,147.23,100.8263985]
[1719905867893,6.7895,147.29,147.24,12.42]
[1719905868098,19.2095,147.29,147.24,12.42]
[1719905868267,6.7899,147.28,147.23,13.2463985]
[1719905868791,19.2099,147.28,147.23,13.2463985]
[1719905868995,19.2099,147.28,147.23,0.8263985]
[1719905869397,19.2099,147.28,147.23,13.2463985]
[1719905870398,12.42,147.29,147.24,12.42]
[1719905870868,13.1616782,147.29,147.24,12.42]
[1719905871067,19.9509782,147.29,147.23,113.2463985]
[1719905871808,12.42,147.28,147.23,0.8263985]
[1719905872017,19.9514782,147.28,147.23,13.2463985]
[1719905872492,0.7416782,147.28,147.23,13.2463985]
[1719905872687,6.7892,147.3,147.23,13.2463985]
[1719905872893,13.1616782,147.29,147.23,13.2463985]
[1719905873109,12.42,147.28,147.23,13.2463985]
[1719905875810,13.1616782,147.29,147.23,13.2463985]
[1719905877319,13.1616782,147.29,147.24,12.42]
[1719905879019,19.9509782,147.29,147.23,13.2463985]
[1719905879814,13.1616782,147.29,147.23,13.2463985]
[1719905880528,13.1616782,147.29,147.24,12.42]
[1719905881627,19.9509782,147.29,147.24,12.42]
[1719905882543,19.9509782,147.29,147.23,0.8263985]
[1719905882748,19.9509782,147.29,147.24,12.42]
[1719905883239,6.79,147.28,147.23,0.8263985]
[1719905883440,13.1616782,147.27,147.23,0.8263985]
[1719905883945,0.7416782,147.27,147.23,13.2463985]
[1719905884319,0.7416782,147.27,147.23,0.8263985]
[1719905884542,0.7416782,147.27,147.23,13.2463985]
[1719905888943,12.42,147.28,147.23,13.2463985]
[1719905889129,12.42,147.29,147.24,12.42]
[1719905889327,20.0,147.28,147.24,12.42]
[1719905890632,20.0,147.28,147.25,12.42]
[1719905890936,20.0,147.29,147.25,12.42]
[1719905892645,6.7888,147.3,147.25,12.42]
[1719905892846,7.5304782,147.3,147.25,12.42]
[1719905893548,19.9504782,147.3,147.25,12.42]
[1719905893722,0.7416782,147.3,147.25,12.42]
[1719905893922,6.7893,147.29,147.25,12.42]
[1719905894955,6.7893,147.29,147.24,16.1449]
[1719905894956,19.9509782,147.29,147.24,28.5649]
[1719905895948,13.1616782,147.29,147.24,28.5649]
[1719905896453,13.1616782,147.3,147.25,12.42]
[1719905896750,0.7416782,147.3,147.25,12.42]
[1719905897049,33.1616782,147.3,147.25,12.42]
[1719905897225,39.9504782,147.3,147.25,12.42]
[1719905897850,39.9504782,147.3,147.24,16.1449]
[1719905898160,6.7895,147.29,147.24,28.5649]
[1719905898542,33.1616782,147.3,147.24,16.1449]
[1719905898855,12.42,147.29,147.24,16.1449]
[1719905899038,13.1616782,147.28,147.24,16.1449]
[1719905899761,12.42,147.28,147.24,16.1449]
[1719905899960,19.9511782,147.29,147.24,28.5649]
[1719905900465,19.9511782,147.29,147.24,16.1449]
[1719905903761,13.1616782,147.29,147.24,16.1449]
[1719905903936,13.1616782,147.29,147.24,28.5649]
[1719905908338,0.7416782,147.29,147.24,28.5649]
[1719905909353,0.7416782,147.29,147.24,16.1449]
[1719905909557,0.7416782,147.29,147.24,28.5649]
[1719905912843,20.0,147.3,147.26,12.42]
[1719905913046,7.5296782,147.32,147.27,12.42]
[1719905913280,20.0,147.31,147.27,12.42]
[1719905914069,20.0,147.31,147.26,12.42]
[1719905914974,0.7416782,147.3,147.24,16.1449]
[1719905915175,0.7416782,147.3,147.25,12.42]
[1719905915377,0.7416782,147.3,147.26,12.42]
[1719905916150,7.5304782,147.3,147.26,12.42]
[1719905916349,0.7416782,147.29,147.26,12.42]
[1719905916564,0.7416782,147.29,147.25,12.42]
[1719905918276,0.7416782,147.29,147.24,16.1449]
[1719905918455,0.7416782,147.29,147.25,12.42]
[1719905919679,0.7416782,147.29,147.24,16.1449]
[1719905919849,19.9509782,147.29,147.24,28.5649]
[1719905920051,0.7416782,147.28,147.24,16.1449]
[1719905920270,0.7416782,147.28,147.24,28.5649]
[1719905920664,13.1616782,147.3,147.25,12.42]
[1719905922757,0.7416782,147.29,147.25,12.42]
[1719905922983,0.7416782,147.29,147.24,28.5649]
[1719905927293,0.7416782,147.29,147.24,16.1449]
[1719905927584,19.9509782,147.29,147.24,16.1449]
[1719905927876,0.7416782,147.28,147.24,16.1449]
[1719905928066,0.7416782,147.28,147.24,28.5649]
[1719905928372,0.7416782,147.28,147.24,16.1449]
[1719905928559,0.7416782,147.28,147.24,28.5649]
[1719905929159,0.7416782,147.29,147.24,28.5649]
[1719905930278,0.7416782,147.29,147.24,12.42]
[1719905930479,13.1616782,147.29,147.23,13.2463985]
[1719905931754,0.7416782,147.28,147.23,13.2463985]
[1719905932482,12.42,147.26,147.23,0.8263985]
[1719905932687,0.7416782,147.25,147.23,0.8263985]
[1719905933356,12.42,147.24,147.23,0.8263985]
[1719905933552,39.2116,147.24,147.23,0.8263985]
[1719905936567,20.0,147.24,147.23,0.8263985]
[1719905937075,39.2116,147.24,147.23,0.8263985]
[1719905937467,32.42,147.24,147.23,0.8263985]
[1719905938883,20.0,147.24,147.23,0.8263985]
[1719905940463,20.7416782,147.24,147.23,0.8263985]
[1719905942693,26.7916,147.24,147.23,0.8263985]
[1719905942992,20.0,147.24,147.23,0.8263985]
[1719905943164,26.7916,147.24,147.23,0.8263985]
[1719905943582,27.5332782,147.24,147.23,0.8263985]
[1719905944494,39.9532782,147.24,147.23,0.8263985]
[1719905945371,27.5332782,147.24,147.23,0.8263985]
[1719905945571,39.2116,147.24,147.23,0.8263985]
[1719905948370,26.7916,147.24,147.23,0.8263985]
[1719905948571,39.2116,147.24,147.23,0.8263985]
[1719905952585,26.7916,147.24,147.23,0.8263985]
[1719905952885,39.2116,147.24,147.23,0.8263985]
[1719905953791,26.7916,147.24,147.23,0.8263985]
[1719905954294,39.2116,147.24,147.23,0.8263985]
[1719905954500,26.7916,147.24,147.23,0.8263985]
[1719905954876,39.2116,147.24,147.23,0.8263985]
[1719905956000,26.7916,147.24,147.23,0.8263985]
[1719905956296,39.2116,147.24,147.23,0.8263985]
[1719905956595,26.7916,147.24,147.23,0.8263985]
[1719905956899,39.2116,147.24,147.23,0.8263985]
[1719905957585,26.7916,147.24,147.23,0.8263985]
[1719905957779,39.2116,147.24,147.23,0.8263985]
[1719905960884,59.6316,147.24,147.23,0.8263985]
[1719905961084,16.9829,147.21,147.14,0.04027067]
[1719905961289,6.7948,147.17,147.14,0.04027067]
[1719905961503,16.9829,147.21,147.14,0.04027067]
[1719905961504,16.9853,147.19,147.14,0.04027067]
[1719905961674,6.7949,147.17,147.14,0.04027067]
[1719905961876,6.7944,147.18,147.14,0.04027067]
[1719905962096,6.7949,147.17,147.14,0.04027067]
[1719905962307,6.7945,147.18,147.14,0.04027067]
[1719905962795,6.794,147.19,147.14,0.04027067]
[1719905963126,20.7416782,147.18,147.14,0.04027067]
[1719905963706,0.7416782,147.17,147.14,0.04027067]
[1719905963887,0.7416782,147.17,147.14,12.46027067]
[1719905964095,7.5365782,147.17,147.14,12.46027067]
[1719905964282,0.7416782,147.17,147.14,12.46027067]
[1719905965004,19.214,147.19,147.14,12.46027067]
[1719905965205,0.7416782,147.2,147.15,12.42]
[1719905965406,20.7416782,147.2,147.15,12.42]
[1719905965703,20.7416782,147.2,147.16,12.42]
[1719905965888,27.5350782,147.2,147.16,12.42]
[1719905966089,27.5350782,147.2,147.15,12.42]
[1719905966398,6.7939,147.19,147.14,15.82077067]
[1719905966592,0.7416782,147.18,147.14,28.24077067]
[1719905966789,7.5360782,147.18,147.14,15.82077067]
[1719905967004,0.7416782,147.17,147.14,15.82077067]
[1719905968105,0.7416782,147.18,147.14,28.24077067]
[1719905968482,0.7416782,147.18,147.14,15.82077067]
[1719905970004,0.7416782,147.18,147.14,28.24077067]
[1719905970183,0.7416782,147.19,147.15,12.42]
[1719905970510,20.7416782,147.2,147.15,12.42]
[1719905973503,0.7416782,147.2,147.15,12.42]
[1719905973701,0.7416782,147.21,147.16,12.42]
[1719905974185,20.7416782,147.21,147.16,12.42]
[1719905974382,20.0,147.21,147.17,12.42]
[1719905974594,20.0,147.21,147.14,134.41837067]
[1719905974895,20.7416782,147.22,147.18,12.42]
[1719905975488,0.7416782,147.23,147.18,12.42]
[1719905976992,20.7416782,147.23,147.18,12.42]
[1719905977492,33.1616782,147.23,147.18,12.42]
[1719905978492,33.1616782,147.23,147.14,75.24837067]
[1719905978493,33.1616782,147.23,147.14,71.67837067]
[1719905978714,12.42,147.22,147.17,12.42]
[1719905979005,0.7416782,147.21,147.17,12.42]
[1719905980814,0.7416782,147.22,147.17,12.42]
[1719905982315,20.7416782,147.23,147.18,12.42]
[1719905982510,0.7416782,147.23,147.18,12.42]
[1719905982895,13.1616782,147.23,147.18,12.42]
[1719905983094,19.9538782,147.23,147.18,12.42]
[1719905983319,19.9538782,147.23,147.17,12.42]
[1719905984691,0.7416782,147.23,147.18,12.42]
[1719905984896,13.1616782,147.23,147.17,12.42]
[1719905985096,13.1616782,147.23,147.14,121.99837067]
[1719905985292,19.9539782,147.23,147.17,12.42]
[1719905985520,6.7926,147.22,147.17,12.42]
[1719905985710,0.7416782,147.21,147.17,12.42]
[1719905987608,0.7416782,147.21,147.14,15.82077067]
[1719905988122,13.1616782,147.21,147.16,12.42]
[1719905988320,0.7416782,147.2,147.16,12.42]
[1719905989419,0.7416782,147.2,147.14,10.24077067]
[1719905989723,0.7416782,147.2,147.16,12.42]
[1719905991113,13.1616782,147.21,147.16,12.42]
[1719905991317,0.7416782,147.2,147.16,12.42]
[1719905992820,0.7416782,147.2,147.11,205.49814629]
[1719905993015,0.7416782,147.2,147.15,12.42]
[1719905993925,6.7946,147.18,147.13,12.42]
[1719905994134,20.7416782,147.17,147.13,12.42]
[1719905994313,20.0,147.17,147.14,12.42]
[1719905994925,20.7416782,147.18,147.14,12.42]
[1719905995216,20.7416782,147.18,147.11,100.0]
[1719905995217,16.247,147.19,147.15,12.42]
[1719905995421,6.793,147.21,147.13,100.0]
[1719905995422,0.7416782,147.2,147.16,12.42]
[1719905995630,20.7416782,147.2,147.16,12.42]
[1719905995816,27.5351782,147.2,147.16,12.42]
[1719905996124,20.7416782,147.2,147.15,12.42]
[1719905996920,0.7416782,147.21,147.15,100.0]
[1719905997125,0.7416782,147.2,147.12,15.8427]
[1719905997428,13.1616782,147.2,147.15,12.42]
[1719905997631,6.7946,147.18,147.15,12.42]
[1719905997930,7.5367782,147.17,147.14,12.42]
[1719905998125,7.5367782,147.17,147.11,100.0]
[1719905998315,0.7416782,147.18,147.15,12.42]
[1719905998514,6.7942,147.19,147.15,12.42]
[1719905998730,0.7416782,147.18,147.15,12.42]
[1719905999128,0.7416782,147.18,147.14,12.42]
[1719905999634,0.7416782,147.19,147.14,12.42]
[1719905999817,0.7416782,147.19,147.15,12.42]
[1719906000429,0.7416782,147.22,147.17,12.42]
[1719906000634,0.7416782,147.22,147.11,100.0]
[1719906000635,13.1616782,147.22,147.11,100.0]
[1719906000812,6.7942,147.19,147.15,12.42]
[1719906001011,0.7416782,147.18,147.11,100.0]
[1719906001318,0.7416782,147.18,147.15,12.42]
[1719906001940,0.7416782,147.19,147.15,12.42]
[1719906003132,0.7416782,147.2,147.15,12.42]
[1719906005137,0.7416782,147.2,147.16,12.42]
[1719906005337,20.7416782,147.21,147.16,12.42]
[1719906005513,20.7416782,147.21,147.17,12.42]
[1719906005840,0.7416782,147.2,147.17,12.42]
[1719906006349,20.7416782,147.21,147.17,12.42]
[1719906006520,0.7416782,147.22,147.17,12.42]
[1719906006839,0.7416782,147.22,147.18,12.42]
[1719906007540,12.42,147.2,147.12,100.0]
[1719906007713,13.1616782,147.19,147.14,12.42]
[1719906008415,13.1616782,147.19,147.12,100.0]
[1719906008746,13.1616782,147.19,147.13,12.42]
[1719906009734,0.7416782,147.18,147.13,12.42]
[1719906011750,0.7416782,147.19,147.14,12.42]
[1719906011930,0.7416782,147.19,147.15,12.42]
[1719906013069,0.7416782,147.19,147.16,12.42]
[1719906013532,0.7416782,147.2,147.16,12.42]
[1719906014051,7.5351782,147.2,147.16,12.42]
[1719906014763,7.5351782,147.2,147.15,12.42]
[1719906015145,7.5351782,147.2,147.11,100.0]
[1719906015146,6.7939,147.19,147.11,100.0]
[1719906015460,0.7416782,147.18,147.15,12.42]
[1719906016259,0.7416782,147.19,147.15,12.42]
[1719906016752,7.5355782,147.19,147.12,20.0]
[1719906016942,7.5355782,147.19,147.15,12.42]
[1719906017258,0.7416782,147.19,147.15,12.42]
[1719906018868,0.7416782,147.19,147.12,20.0]
[1719906019078,0.7416782,147.19,147.15,12.42]
[1719906019968,19.213,147.21,147.16,12.42]
[1719906020143,7.5351782,147.2,147.16,12.42]
[1719906020761,7.5351782,147.2,147.12,120.0]
[1719906020938,7.5351782,147.2,147.15,12.42]
[1719906022382,6.7942,147.19,147.12,120.0]
[1719906022546,0.7416782,147.18,147.15,12.42]
[1719906022855,0.7416782,147.18,147.14,12.42]
[1719906024062,0.7416782,147.19,147.15,12.42]
[1719906025052,0.7416782,147.19,147.14,12.42]
[1719906026667,0.7416782,147.19,147.15,12.42]
[1719906028452,0.7416782,147.2,147.15,12.42]
[1719906032264,0.7416782,147.17,147.14,12.42]
[1719906033075,0.7416782,147.17,147.13,12.42]
[1719906034566,7.5365782,147.17,147.1,100.0]
[1719906034773,7.5365782,147.17,147.13,12.42]
[1719906036674,7.5365782,147.17,147.12,12.42]
[1719906037572,0.7416782,147.17,147.12,12.42]
[1719906037970,0.7416782,147.17,147.13,12.42]
[1719906038771,0.7416782,147.17,147.1,100.0]
[1719906038975,6.7956,147.16,147.11,12.42]
[1719906039176,0.7416782,147.15,147.12,12.42]
[1719906039363,0.7416782,147.15,147.1,100.0]
[1719906039666,0.7416782,147.15,147.12,12.42]
[1719906039867,0.7416782,147.15,147.1,100.0]
[1719906040048,0.7416782,147.16,147.12,12.42]
[1719906042679,0.7416782,147.17,147.13,12.42]
[1719906042859,0.7416782,147.17,147.14,12.42]
[1719906044057,21.3416,147.18,147.14,12.42]
[1719906044259,21.3416,147.18,147.15,12.42]
[1719906045863,0.7416782,147.19,147.15,12.42]
[1719906046180,20.7416782,147.19,147.15,12.42]
[1719906047079,0.7416782,147.19,147.15,12.42]
[1719906048084,0.7416782,147.19,147.12,100.0]
[1719906048262,0.7416782,147.19,147.15,12.42]
[1719906049884,7.5355782,147.19,147.15,12.42]
[1719906050080,7.5347782,147.21,147.14,112.42]
[1719906050279,29.6156782,147.22,147.18,12.42]
[1719906051578,28.874,147.22,147.18,12.42]
[1719906051781,29.6156782,147.22,147.18,12.42]
[1719906051988,28.874,147.22,147.18,12.42]
[1719906052280,29.6156782,147.22,147.18,12.42]
[1719906055195,22.8228782,147.22,147.18,12.42]
[1719906055387,15.5257,147.22,147.2,12.42]
[1719906055586,0.7416782,147.23,147.2,12.42]
[1719906055888,22.8184,147.25,147.21,12.42]
[1719906057690,0.7416782,147.28,147.24,12.42]
[1719906057883,0.7416782,147.29,147.24,12.42]
[1719906058063,21.9493,147.3,147.26,12.42]
[1719906058271,21.9493,147.3,147.24,100.0]
[1719906058467,21.9493,147.3,147.27,12.42]
[1719906058468,15.619,147.3,147.27,12.42]
[1719906060394,15.619,147.3,147.28,12.42]
[1719906060577,7.5296782,147.32,147.29,12.42]
[1719906060780,20.0,147.31,147.29,12.42]
[1719906061092,20.0,147.32,147.29,12.42]
[1719906061495,20.0,147.32,147.28,12.42]
[1719906061690,26.788,147.32,147.28,12.42]
[1719906061894,27.5296782,147.32,147.28,12.42]
[1719906062589,6.7884,147.31,147.27,12.42]
[1719906062789,20.7416782,147.32,147.27,12.42]
[1719906062790,27.5296782,147.32,147.27,12.42]
[1719906062993,20.7416782,147.32,147.28,12.42]
[1719906063294,6.0898,147.33,147.28,12.42]
[1719906063601,6.8314782,147.33,147.28,12.42]
[1719906063898,6.788,147.32,147.28,12.42]
[1719906064081,6.788,147.32,147.29,12.42]
[1719906064277,13.6189782,147.33,147.26,100.0]
[1719906064495,0.7416782,147.32,147.28,12.42]
[1719906065491,0.7416782,147.32,147.29,12.42]
[1719906065694,13.6189782,147.33,147.29,12.42]
[1719906065894,0.7416782,147.32,147.29,12.42]
[1719906069082,6.8314782,147.33,147.29,12.42]
[1719906070086,0.7416782,147.32,147.29,12.42]
[1719906070286,7.5296782,147.32,147.27,12.42]
[1719906070585,7.5296782,147.32,147.26,100.0]
[1719906070793,6.7889,147.3,147.26,100.0]
[1719906071102,7.5309782,147.29,147.26,100.0]
[1719906071298,6.0898,147.33,147.26,112.42]
[1719906071299,6.7889,147.3,147.26,112.42]
[1719906071606,0.7416782,147.29,147.26,112.42]
[1719906072183,0.7416782,147.3,147.26,112.42]
[1719906072413,0.7416782,147.3,147.22,100.0]
[1719906072589,13.1616782,147.29,147.22,100.0]
[1719906072787,13.1616782,147.29,147.24,12.42]
[1719906073190,13.1616782,147.29,147.22,100.0]
[1719906073191,6.7901,147.28,147.21,5.35330311]
[1719906073386,0.7416782,147.27,147.24,12.42]
[1719906073901,22.4070782,147.27,147.18,257.1]
[1719906074103,0.7416782,147.26,147.21,12.42]
[1719906074308,27.5324782,147.26,147.21,12.42]
[1719906075799,20.7416782,147.26,147.23,12.42]
[1719906076281,20.7416782,147.26,147.22,1.12616637]
[1719906076482,20.7416782,147.26,147.23,12.42]
[1719906078791,28.4556,147.27,147.23,12.42]
[1719906079004,28.4556,147.27,147.24,12.42]
[1719906079312,6.7896,147.29,147.25,12.42]
[1719906079489,7.5312782,147.29,147.25,12.42]
[1719906079679,16.1724,147.3,147.25,12.42]
[1719906079883,16.9140782,147.3,147.23,100.0]
[1719906080097,16.9140782,147.3,147.26,12.42]
[1719906081406,23.7029782,147.3,147.26,12.42]
[1719906081597,23.7029782,147.3,147.23,100.0]
[1719906082408,7.5309782,147.29,147.23,100.0]
[1719906082704,0.7416782,147.29,147.23,100.0]
[1719906082907,0.7416782,147.29,147.2,115.4341]
[1719906082908,0.7416782,147.29,147.2,15.4341]
[1719906083089,33.1616782,147.29,147.23,12.42]
[1719906083282,33.1616782,147.29,147.24,12.42]
[1719906083708,6.7903,147.27,147.24,12.42]
[1719906083883,0.7416782,147.26,147.24,12.42]
[1719906084083,0.7416782,147.27,147.24,12.42]
[1719906085097,26.7894,147.29,147.24,12.42]
[1719906085305,0.7416782,147.28,147.24,12.42]
[1719906085912,7.5315782,147.28,147.24,12.42]
[1719906086694,20.7416782,147.29,147.25,12.42]
[1719906087000,39.9512782,147.29,147.24,12.42]
[1719906087613,27.5312782,147.29,147.24,12.42]
[1719906087983,20.7416782,147.29,147.25,12.42]
[1719906089506,27.5310782,147.29,147.25,12.42]
[1719906090199,20.7416782,147.29,147.25,12.42]
[1719906091909,20.7416782,147.29,147.23,100.0]
[1719906094612,23.7032782,147.3,147.23,100.0]
[1719906094800,16.1724,147.3,147.23,100.0]